lending/lending_fUSD_20260306
["ID","MTS","AMOUNT","RATE_DAILY","PERIOD"]
[407795673,1772805062617,-695.418156,0.00045,120]
[407795674,1772805062627,-159.588177,0.00045,120]
[407795675,1772805062636,-151.0,0.00045,120]
[407795676,1772805062645,-151.0,0.00045,120]
[407795677,1772805062654,-151.0,0.00045,120]
[407795678,1772805062663,-883.769653,0.00045,120]
[407795679,1772805062673,-355.088938,0.00045,120]
[407795680,1772805062682,-883.769653,0.00045,120]
[407795681,1772805062691,-355.088938,0.00045,120]
[407795682,1772805062701,-883.769653,0.00045,120]
[407795683,1772805062710,-355.088938,0.00045,120]
[407795684,1772805062719,-883.769653,0.00045,120]
[407795685,1772805062729,-355.088938,0.00045,120]
[407795686,1772805062741,-332.483725,0.00045,120]
[407795687,1772805062750,-332.483725,0.00045,120]
[407795688,1772805062759,-332.483725,0.00045,120]
[407795689,1772805062768,-332.483725,0.00045,120]
[407795690,1772805062778,-151.0,0.00045,2]
[407795691,1772805062787,-151.0,0.00045,120]
[407795692,1772805062799,-151.0,0.00045,30]
[407795693,1772805062809,-151.0,0.00045,120]
[407795694,1772805062819,-151.0,0.00045,30]
[407795695,1772805062830,-151.0,0.00045,30]
[407795696,1772805062839,-151.0,0.00045,30]
[407795697,1772805062849,-151.0,0.00045,14]
[407795698,1772805062859,-151.0,0.00045,14]
[407795699,1772805062869,-151.0,0.00045,14]
[407795700,1772805062879,-193.710991,0.00045,120]
[407795701,1772805062894,-193.710991,0.00045,120]
[407795702,1772805062903,-151.0,0.00045,120]
[407795703,1772805062913,-193.710991,0.00045,120]
[407795704,1772805062923,-193.710991,0.00045,120]
[407795705,1772805062934,-151.0,0.00045,120]
[407795706,1772805062944,-151.0,0.00045,120]
[407795707,1772805062954,-151.0,0.00045,120]
[407795708,1772805062964,-151.0,0.00045,120]
[407795709,1772805062974,-151.0,0.00045,120]
[407795710,1772805062984,-270.074579,0.00045,120]
[407795711,1772805062993,-270.074579,0.00045,120]
[407795712,1772805063002,-270.074579,0.00045,120]
[407795713,1772805063011,-270.074579,0.00045,120]
[407795714,1772805063020,-151.0,0.00045,120]
[407795715,1772805063030,-151.0,0.00045,120]
[407795716,1772805063039,-210.342247,0.00045,120]
[407795717,1772805063048,-151.0,0.00045,120]
[407795718,1772805063058,-151.0,0.00045,120]
[407795719,1772805063067,-151.0,0.00045,120]
[407795720,1772805063076,-151.0,0.00045,120]
[407795721,1772805063086,-1068.578217,0.00045,28]
[407795722,1772805063095,-1068.578217,0.00045,28]
[407795723,1772805063104,-1068.578217,0.00045,28]
[407795724,1772805063114,-1068.578217,0.00045,28]
[407795725,1772805063123,-151.0,0.00045,120]
[407795726,1772805063132,-1110.699193,0.00045,120]
[407795727,1772805063142,-1110.699193,0.00045,120]
[407795728,1772805063151,-204.253231,0.00045,120]
[407795729,1772805063160,-151.0,0.00045,120]
[407795730,1772805063169,-1110.699193,0.00045,120]
[407795731,1772805063179,-151.0,0.00045,120]
[407795732,1772805063189,-1110.699193,0.00045,120]
[407795733,1772805063198,-226.60642,0.00045,120]
[407795734,1772805063207,-650.032813,0.00045,7]
[407795735,1772805063218,-202.215456,0.00045,120]
[407795736,1772805063227,-650.032813,0.00045,7]
[407795737,1772805063241,-650.032813,0.00045,7]
[407795738,1772805063250,-650.032813,0.00045,7]
[407795739,1772805063259,-151.0,0.00045,120]
[407795740,1772805063269,-151.0,0.00045,120]
[407795741,1772805063278,-500.0,0.00045,120]
[407795742,1772805063287,-500.0,0.00045,120]
[407795743,1772805063296,-500.0,0.00045,120]
[407795744,1772805063307,-500.0,0.00045,120]
[407795745,1772805063317,-151.0,0.00045,120]
[407795746,1772805063326,-151.000007,0.00045,120]
[407795747,1772805063336,-284.725236,0.00045,120]
[407795748,1772805063346,-284.725236,0.00045,120]
[407795749,1772805063357,-151.0,0.00045,120]
[407795750,1772805063366,-284.725236,0.00045,120]
[407795751,1772805063375,-230.510713,0.00045,120]
[407795752,1772805063384,-175.010709,0.00045,120]
[407795753,1772805063394,-151.0,0.00045,120]
[407795754,1772805063403,-284.725236,0.00045,120]
[407795755,1772805063413,-151.0,0.00045,120]
[407795756,1772805063422,-175.010709,0.00045,120]
[407795757,1772805063433,-151.0,0.00045,120]
[407795758,1772805063442,-151.0,0.00045,120]
[407795759,1772805063452,-175.010709,0.00045,120]
[407795760,1772805063462,-151.0,0.00045,120]
[407795761,1772805063471,-151.0,0.00045,120]
[407795762,1772805063480,-175.010709,0.00045,120]
[407795763,1772805063494,-151.0,0.00045,120]
[407795764,1772805063503,-151.0,0.00045,120]
[407795765,1772805063513,-1054.60785,0.00045,120]
[407795766,1772805063522,-257.792434,0.00045,120]
[407795767,1772805063532,-1054.60785,0.00045,120]
[407795768,1772805063542,-151.0,0.00045,120]
[407795769,1772805063552,-257.792434,0.00045,120]
[407795770,1772805063562,-1054.60785,0.00045,120]
[407795771,1772805063571,-151.0,0.00045,120]
[407795772,1772805063580,-24552.234967,0.00045,120]
[407795773,1772805063590,-257.792434,0.00045,120]
[407795774,1772805063599,-1054.60785,0.00045,120]
[407795775,1772805063609,-151.0,0.00045,120]
[407795776,1772805063618,-24552.234967,0.00045,120]
[407795777,1772805063627,-257.792434,0.00045,120]
[407795778,1772805063637,-151.0,0.00045,120]
[407795779,1772805063647,-24552.234967,0.00045,120]
[407795780,1772805063656,-300.439372,0.00045,120]
[407795781,1772805063666,-151.0,0.00045,120]
[407795782,1772805063675,-151.0,0.00045,120]
[407795783,1772805063685,-24552.234967,0.00045,120]
[407795784,1772805063694,-151.0,0.00045,120]
[407795785,1772805063703,-1236.417622,0.00045,120]
[407795786,1772805063712,-156.21945,0.00045,120]
[407795787,1772805063722,-1236.417622,0.00045,120]
[407795788,1772805063731,-156.21945,0.00045,120]
[407795789,1772805063743,-1236.417622,0.00045,120]
[407795790,1772805063752,-156.21945,0.00045,120]
[407795791,1772805063762,-1236.417622,0.00045,120]
[407795792,1772805063771,-156.21945,0.00045,120]
[407795793,1772805063780,-151.0,0.00045,120]
[407795794,1772805063789,-151.0,0.00045,120]
[407795795,1772805063799,-151.0,0.00045,120]
[407795796,1772805063808,-151.0,0.00045,120]
[407795797,1772805063818,-507.054478,0.00045,120]
[407795798,1772805063827,-151.0,0.00045,120]
[407795799,1772805063837,-507.054478,0.00045,120]
[407795800,1772805063847,-216.67011,0.00045,120]
[407795801,1772805063857,-507.054478,0.00045,120]
[407795802,1772805063867,-369.518395,0.00045,120]
[407795803,1772805063876,-216.67011,0.00045,120]
[407795804,1772805063886,-507.054478,0.00045,120]
[407795805,1772805063898,-151.0,0.00045,120]
[407795806,1772805063907,-369.518395,0.00045,120]
[407795807,1772805063917,-216.67011,0.00045,120]
[407795808,1772805063927,-369.518395,0.00045,120]
[407795809,1772805063936,-216.67011,0.00045,120]
[407795810,1772805063947,-369.518395,0.00045,120]
[407795811,1772805063957,-151.0,0.00045,60]
[407795812,1772805063969,-694.950407,0.00045,15]
[407795813,1772805063981,-151.0,0.00045,30]
[407795814,1772805063990,-436.687881,0.00045,120]
[407795815,1772805064000,-694.950407,0.00045,15]
[407795816,1772805064009,-151.0,0.00045,30]
[407795817,1772805064019,-436.687881,0.00045,120]
[407795818,1772805064028,-694.950407,0.00045,15]
[407795819,1772805064038,-151.0,0.00045,120]
[407795820,1772805064048,-436.687881,0.00045,120]
[407795821,1772805064057,-694.950407,0.00045,15]
[407795822,1772805064067,-151.0,0.00045,120]
[407795823,1772805064077,-170.110378,0.00045,120]
[407795824,1772805064087,-436.687881,0.00045,120]
[407795825,1772805064096,-465.570336,0.00045,120]
[407795826,1772805064105,-154.549663,0.00045,120]
[407795827,1772805064115,-465.570336,0.00045,120]
[407795828,1772805064124,-2041.979324,0.00045,14]
[407795829,1772805064133,-151.0,0.00045,120]
[407795830,1772805064142,-465.570336,0.00045,120]
[407795831,1772805064152,-151.0,0.00045,120]
[407795832,1772805064161,-2041.979324,0.00045,14]
[407795833,1772805064171,-465.570336,0.00045,120]
[407795834,1772805064180,-2041.979324,0.00045,14]
[407795835,1772805064190,-352.551056,0.00045,120]
[407795836,1772805064199,-352.551056,0.00045,120]
[407795837,1772805064208,-2041.979324,0.00045,14]
[407795838,1772805064218,-1012.181411,0.00045,120]
[407795839,1772805064228,-352.551056,0.00045,120]
[407795840,1772805064238,-151.0,0.00045,120]
[407795841,1772805064248,-1012.181411,0.00045,120]
[407795842,1772805064257,-352.551056,0.00045,120]
[407795843,1772805064267,-151.0,0.00045,120]
[407795844,1772805064276,-1012.181411,0.00045,120]
[407795845,1772805064286,-1012.181411,0.00045,120]
[407795846,1772805064295,-151.0,0.00045,120]
[407795847,1772805064305,-203.661833,0.00045,120]
[407795848,1772805064315,-248.206969,0.00045,120]
[407795849,1772805064324,-174.50106,0.00045,120]
[407795850,1772805064334,-203.661833,0.00045,120]
[407795851,1772805064343,-174.50106,0.00045,120]
[407795852,1772805064353,-248.206969,0.00045,120]
[407795853,1772805064362,-203.661833,0.00045,120]
[407795854,1772805064372,-174.50106,0.00045,120]
[407795855,1772805064382,-248.206969,0.00045,120]
[407795856,1772805064391,-203.661833,0.00045,120]
[407795857,1772805064401,-174.50106,0.00045,120]
[407795858,1772805064410,-248.206969,0.00045,120]
[407795859,1772805064420,-151.0,0.00045,120]
[407795860,1772805064430,-151.0,0.00045,120]
[407795861,1772805064694,-340.992679,0.00045,120]
[407795862,1772805064753,-340.992679,0.00045,120]
[407795863,1772805064763,-340.992679,0.00045,120]
[407795864,1772805064773,-340.992679,0.00045,120]
[407795865,1772805064782,-181.099671,0.00045,120]
[407795866,1772805064791,-151.0,0.00045,120]
[407795867,1772805064801,-151.0,0.00045,120]
[407795868,1772805064810,-151.0,0.00045,120]
[407795869,1772805064819,-151.0,0.00045,120]
[407795870,1772805064829,-151.0,0.00045,120]
[407795871,1772805064839,-151.0,0.00045,120]
[407795872,1772805064848,-269.804414,0.00045,120]
[407795873,1772805064858,-151.0,0.00045,120]
[407795874,1772805064868,-151.0,0.00045,120]
[407795875,1772805064878,-151.0,0.00045,120]
[407795876,1772805064888,-300.544298,0.00045,120]
[407795877,1772805064901,-1077.37790028,0.00045,30]
[407795878,1772805064911,-178.56416906,0.00045008,30]
[407795879,1772805064920,-159.49661076,0.00045008,30]
[407795880,1772805064931,-237.39121081,0.00045008,30]
[407795881,1772805064940,-496.10721813,0.00045008,30]
[407795882,1772805064949,-259.39398879,0.00045008,30]
[407795883,1772805064959,-196.401106,0.00045008,30]
[407795884,1772805064969,-150.0,0.00045009,30]
[407795885,1772805064979,-162.11,0.00045013,120]
[407795886,1772805064989,-150.0,0.00045025,30]
[407795887,1772805064998,-150.0,0.00045028,30]
[407795888,1772805065008,-178.56416906,0.0004503,30]
[407795889,1772805065017,-159.49661076,0.0004503,30]
[407795890,1772805065027,-237.39121081,0.0004503,30]
[407795891,1772805065037,-496.10721813,0.0004503,30]
[407795892,1772805065046,-259.39398879,0.0004503,30]
[407795893,1772805065056,-196.401106,0.0004503,30]
[407795894,1772805065066,-150.0,0.00045032,30]
[407795895,1772805065075,-150.0,0.00045037,30]
[407795896,1772805065085,-150.0,0.00045044,30]
[407795897,1772805065095,-150.0,0.00045044,30]
[407795898,1772805065105,-1000.0,0.00045048,30]
[407795899,1772805065115,-178.56416906,0.00045051,30]
[407795900,1772805065125,-159.49661076,0.00045051,30]
[407795901,1772805065135,-237.39121081,0.00045051,30]
[407795902,1772805065145,-496.10721813,0.00045051,30]
[407795903,1772805065154,-259.39398879,0.00045051,30]
[407795904,1772805065164,-196.401106,0.00045051,30]
[407795905,1772805065173,-150.0,0.00045055,30]
[407795906,1772805065183,-150.0,0.00045063,30]
[407795907,1772805065193,-746.0,0.00045069,120]
[407795908,1772805065203,-150.0,0.00045069,30]
[407795909,1772805065213,-168.881881,0.00045069,120]
[407795910,1772805065223,-151.0,0.00045069,120]
[407795911,1772805065233,-151.0,0.00045069,120]
[407795912,1772805065245,-151.0,0.00045069,120]
[407795913,1772805065255,-152.377949,0.00045069,120]
[407795914,1772805065265,-152.377949,0.00045069,120]
[407795915,1772805065275,-154.890951,0.00045069,120]
[407795916,1772805065284,-152.377949,0.00045069,120]
[407795917,1772805065294,-293.573573,0.00045069,120]
[407795918,1772805065303,-152.377949,0.00045069,120]
[407795919,1772805065312,-293.573573,0.00045069,120]
[407795920,1772805065322,-293.573573,0.00045069,120]
[407795921,1772805065332,-293.573573,0.00045069,120]
[407795922,1772805065341,-705.462888,0.00045069,120]
[407795923,1772805065351,-152.619756,0.00045069,120]
[407795924,1772805065362,-705.462888,0.00045069,120]
[407795925,1772805065371,-151.0,0.00045069,120]
[407795926,1772805065381,-705.462888,0.00045069,120]
[407795927,1772805065390,-151.0,0.00045069,120]
[407795928,1772805065400,-705.462888,0.00045069,120]
[407795929,1772805065409,-151.0,0.00045069,120]
[407795930,1772805065418,-1722.066406,0.00045069,120]
[407795931,1772805065428,-1722.066406,0.00045069,120]
[407795932,1772805065438,-1722.066406,0.00045069,120]
[407795933,1772805065447,-1722.066406,0.00045069,120]
[407795934,1772805065457,-151.0,0.00045069,120]
[407795935,1772805065467,-178.56416906,0.00045073,30]
[407795936,1772805065477,-159.49661076,0.00045073,30]
[407795937,1772805065487,-237.39121081,0.00045073,30]
[407795938,1772805065498,-496.10721813,0.00045073,30]
[407795939,1772805065508,-259.39398879,0.00045073,30]
[407795940,1772805065518,-196.401106,0.00045073,30]
[407795941,1772805065528,-150.0,0.00045079,30]
[407795942,1772805065538,-150.0,0.00045088,30]
[407795943,1772805065548,-155.51231892,0.0004509,120]
[407795944,1772805065558,-178.56416906,0.00045095,30]
[407795945,1772805065568,-159.49661076,0.00045095,30]
[407795946,1772805065577,-237.39121081,0.00045095,30]
[407795947,1772805065586,-496.10721813,0.00045095,30]
[407795948,1772805065596,-259.39398879,0.00045095,30]
[407795949,1772805065605,-196.401106,0.00045095,30]
[407795950,1772805065615,-150.0,0.00045101,30]
[407795951,1772805065624,-150.0,0.00045102,30]
[407795952,1772805065634,-150.0,0.00045102,30]
[407795953,1772805065644,-150.0,0.00045102,30]
[407795954,1772805065654,-150.0,0.0004511,30]
[407795955,1772805065663,-150.0,0.00045112,120]
[407795956,1772805065673,-162.11,0.00045113,120]
[407795957,1772805065682,-178.56416906,0.00045116,30]
[407795958,1772805065692,-159.49661076,0.00045116,30]
[407795959,1772805065702,-237.39121081,0.00045116,30]
[407795960,1772805065712,-496.10721813,0.00045116,30]
[407795961,1772805065721,-259.39398879,0.00045116,30]
[407795962,1772805065731,-196.401106,0.00045116,30]
[407795963,1772805065740,-150.0,0.00045117,120]
[407795964,1772805065750,-150.0,0.0004512,30]
[407795965,1772805065760,-150.0,0.00045125,30]
[407795966,1772805065770,-178.56416906,0.00045138,30]
[407795967,1772805065779,-159.49661076,0.00045138,30]
[407795968,1772805065788,-237.39121081,0.00045138,30]
[407795969,1772805065798,-496.10721813,0.00045138,30]
[407795970,1772805065807,-259.39398879,0.00045138,30]
[407795971,1772805065817,-196.401106,0.00045138,30]
[407795972,1772805065826,-150.0,0.00045139,30]
[407795973,1772805065835,-150.0,0.00045139,30]
[407795974,1772805065845,-150.0,0.00045148,30]
[407795975,1772805065855,-150.0,0.00045151,30]
[407795976,1772805065864,-178.56416906,0.0004516,30]
[407795977,1772805065874,-159.49661076,0.0004516,30]
[407795978,1772805065883,-237.39121081,0.0004516,30]
[407795979,1772805065894,-496.10721813,0.0004516,30]
[407795980,1772805065905,-259.39398879,0.0004516,30]
[407795981,1772805065914,-196.401106,0.0004516,30]
[407795982,1772805065923,-150.0,0.0004516,30]
[407795983,1772805065933,-150.0,0.0004516,30]
[407795984,1772805065943,-150.0,0.00045171,30]
[407795985,1772805065952,-485.83,0.00045171,120]
[407795986,1772805065962,-368.28,0.00045172,120]
[407795987,1772805065973,-150.0,0.00045178,30]
[407795988,1772805065982,-178.56416906,0.00045181,30]
[407795989,1772805065991,-159.49661076,0.00045181,30]
[407795990,1772805066001,-237.39121081,0.00045181,30]
[407795991,1772805066010,-150.0,0.00045181,30]
[407795992,1772805066020,-496.10721813,0.00045181,30]
[407795993,1772805066031,-259.39398879,0.00045181,30]
[407795994,1772805066040,-196.401106,0.00045181,30]
[407795995,1772805066050,-549.11213581,0.00045189,120]
[407795996,1772805066059,-150.0,0.0004519,30]
[407795997,1772805066069,-150.0,0.00045192,30]
[407795998,1772805066078,-150.0,0.00045194,30]
[407795999,1772805066088,-178.56416906,0.00045203,30]
[407796000,1772805066098,-159.49661076,0.00045203,30]
[407796001,1772805066107,-237.39121081,0.00045203,30]
[407796002,1772805066117,-496.10721813,0.00045203,30]
[407796003,1772805066126,-259.39398879,0.00045203,30]
[407796004,1772805066137,-196.401106,0.00045203,30]
[407796005,1772805066147,-500.0,0.00045206,120]
[407796006,1772805066157,-915.0,0.00045206,120]
[407796007,1772805066167,-155.78413789,0.00045208,2]
[407796008,1772805066177,-3000.0,0.00045212,60]
[407796009,1772805066187,-1200.0,0.00045212,60]
[407796010,1772805066196,-162.11,0.00045213,120]
[407796011,1772805066205,-150.0,0.00045216,30]
[407796012,1772805066215,-150.0,0.00045217,30]
[407796013,1772805066224,-150.0,0.00045218,30]
[407796014,1772805066234,-150.0,0.00045218,30]
[407796015,1772805066247,-178.56416906,0.00045224,30]
[407796016,1772805066256,-159.49661076,0.00045224,30]
[407796017,1772805066266,-237.39121081,0.00045224,30]
[407796018,1772805066275,-496.10721813,0.00045224,30]
[407796019,1772805066285,-259.39398879,0.00045224,30]
[407796020,1772805066294,-150.0,0.00045224,30]
[407796021,1772805066304,-196.401106,0.00045224,30]
[407796022,1772805066313,-150.0,0.00045234,30]
[407796023,1772805066323,-150.0,0.0004524,30]
[407796024,1772805066332,-150.0,0.00045242,30]
[407796025,1772805066341,-178.56416906,0.00045246,30]
[407796026,1772805066351,-159.49661076,0.00045246,30]
[407796027,1772805066360,-237.39121081,0.00045246,30]
[407796028,1772805066369,-496.10721813,0.00045246,30]
[407796029,1772805066379,-259.39398879,0.00045246,30]
[407796030,1772805066389,-196.401106,0.00045246,30]
[407796031,1772805066398,-150.0,0.00045254,30]
[407796032,1772805066408,-150.0,0.00045254,30]
[407796033,1772805066418,-150.0,0.00045263,30]
[407796034,1772805066427,-150.0,0.00045264,120]
[407796035,1772805066436,-178.56416906,0.00045268,30]
[407796036,1772805066445,-159.49661076,0.00045268,30]
[407796037,1772805066455,-237.39121081,0.00045268,30]
[407796038,1772805066464,-496.10721813,0.00045268,30]
[407796039,1772805066474,-259.39398879,0.00045268,30]
[407796040,1772805066484,-196.401106,0.00045268,30]
[407796041,1772805066496,-150.0,0.00045275,30]
[407796042,1772805066505,-150.0,0.00045276,30]
[407796043,1772805066515,-150.0,0.00045276,30]
[407796044,1772805066529,-150.0,0.00045286,30]
[407796045,1772805066539,-178.56416906,0.00045289,30]
[407796046,1772805066549,-159.49661076,0.00045289,30]
[407796047,1772805066558,-237.39121081,0.00045289,30]
[407796048,1772805066568,-496.10721813,0.00045289,30]
[407796049,1772805066577,-259.39398879,0.00045289,30]
[407796050,1772805066586,-196.401106,0.00045289,30]
[407796051,1772805066595,-150.0,0.00045293,30]
[407796052,1772805066605,-150.0,0.00045293,30]
[407796053,1772805066615,-3000.0,0.00045295,60]
[407796054,1772805066624,-200.0,0.000453,19]
[407796055,1772805066634,-151.0,0.000453,120]
[407796056,1772805066643,-150.0,0.00045309,30]
[407796057,1772805066653,-178.56416906,0.00045311,30]
[407796058,1772805066663,-159.49661076,0.00045311,30]
[407796059,1772805066674,-237.39121081,0.00045311,30]
[407796060,1772805066684,-496.10721813,0.00045311,30]
[407796061,1772805066693,-259.39398879,0.00045311,30]
[407796062,1772805066703,-196.401106,0.00045311,30]
[407796063,1772805066713,-150.0,0.00045316,30]
[407796064,1772805066726,-1000.0,0.00045322,30]
[407796065,1772805066736,-150.0,0.00045331,30]
[407796066,1772805066749,-150.0,0.00045332,30]
[407796067,1772805066758,-178.56416906,0.00045333,30]
[407796068,1772805066767,-159.49661076,0.00045333,30]
[407796069,1772805066776,-237.39121081,0.00045333,30]
[407796070,1772805066785,-496.10721813,0.00045333,30]
[407796071,1772805066794,-259.39398879,0.00045333,30]
[407796072,1772805066804,-196.401106,0.00045333,30]
[407796073,1772805066813,-150.0,0.00045334,30]
[407796074,1772805066822,-150.0,0.00045334,30]
[407796075,1772805066831,-746.0,0.00045343,120]
[407796076,1772805066840,-150.0,0.00045344,30]
[407796077,1772805066849,-178.56416906,0.00045354,30]
[407796078,1772805066858,-159.49661076,0.00045354,30]
[407796079,1772805066867,-237.39121081,0.00045354,30]
[407796080,1772805066877,-496.10721813,0.00045354,30]
[407796081,1772805066894,-259.39398879,0.00045354,30]
[407796082,1772805066903,-196.401106,0.00045354,30]
[407796083,1772805066912,-150.0,0.00045355,30]
[407796084,1772805066921,-150.0,0.00045357,30]
[407796085,1772805066934,-150.0,0.00045369,30]
[407796086,1772805066943,-178.56416906,0.00045376,30]
[407796087,1772805066952,-159.49661076,0.00045376,30]
[407796088,1772805066963,-237.39121081,0.00045376,30]
[407796089,1772805066972,-150.0,0.00045376,30]
[407796090,1772805066981,-496.10721813,0.00045376,30]
[407796091,1772805066991,-259.39398879,0.00045376,30]
[407796092,1772805067000,-196.401106,0.00045376,30]
[407796093,1772805067009,-150.0,0.00045378,30]
[407796094,1772805067018,-150.0,0.00045388,30]
[407796095,1772805067028,-150.0,0.00045392,30]
[407796096,1772805067037,-150.0,0.00045392,30]
[407796097,1772805067045,-150.0,0.00045395,30]
[407796098,1772805067055,-178.56416906,0.00045398,30]
[407796099,1772805067064,-159.49661076,0.00045398,30]
[407796100,1772805067074,-237.39121081,0.00045398,30]
[407796101,1772805067083,-496.10721813,0.00045398,30]
[407796102,1772805067092,-259.39398879,0.00045398,30]
[407796103,1772805067101,-196.401106,0.00045398,30]
[407796104,1772805067111,-150.0,0.00045399,30]
[407796105,1772805067227,-2016.08,0.000454,120]
[407796106,1772805067237,-10353.0732603,0.000454,30]
[407796107,1772805067247,-153.0,0.000454,120]
[407796108,1772805067256,-150.0,0.00045401,30]
[407796109,1772805067265,-150.0,0.00045407,30]
[407796110,1772805067274,-350.0,0.00045413,6]
[407796111,1772805067283,-178.56416906,0.00045419,30]
[407796112,1772805067291,-159.49661076,0.00045419,30]
[407796113,1772805067300,-237.39121081,0.00045419,30]
[407796114,1772805067310,-496.10721813,0.00045419,30]
[407796115,1772805067319,-259.39398879,0.00045419,30]
[407796116,1772805067328,-196.401106,0.00045419,30]
[407796117,1772805067337,-1065.21447142,0.00045421,120]
[407796118,1772805067347,-150.0,0.00045424,30]
[407796119,1772805067355,-150.0,0.0004544,30]
[407796120,1772805067365,-178.56416906,0.00045441,30]
[407796121,1772805067374,-159.49661076,0.00045441,30]
[407796122,1772805067383,-237.39121081,0.00045441,30]
[407796123,1772805067391,-496.10721813,0.00045441,30]
[407796124,1772805067401,-259.39398879,0.00045441,30]
[407796125,1772805067410,-196.401106,0.00045441,30]
[407796126,1772805067419,-485.83,0.00045445,120]
[407796127,1772805067428,-150.0,0.00045446,30]
[407796128,1772805067437,-150.0,0.00045446,30]
[407796129,1772805067446,-150.0,0.00045447,30]
[407796130,1772805067455,-150.0,0.0004545,30]
[407796131,1772805067463,-150.0,0.0004545,30]
[407796132,1772805067472,-178.56416906,0.00045463,30]
[407796133,1772805067480,-159.49661076,0.00045463,30]
[407796134,1772805067489,-237.39121081,0.00045463,30]
[407796135,1772805067502,-496.10721813,0.00045463,30]
[407796136,1772805067510,-259.39398879,0.00045463,30]
[407796137,1772805067519,-150.0,0.00045463,30]
[407796138,1772805067528,-196.401106,0.00045463,30]
[407796139,1772805067537,-150.0,0.0004547,30]
[407796140,1772805067546,-873.765854,0.00045479,120]
[407796141,1772805067555,-873.765854,0.00045479,120]
[407796142,1772805067564,-873.765854,0.00045479,120]
[407796143,1772805067573,-873.765854,0.00045479,120]
[407796144,1772805067582,-915.0,0.0004548,120]
[407796145,1772805067591,-150.0,0.00045481,30]
[407796146,1772805067600,-155.78413789,0.00045482,2]
[407796147,1772805067609,-150.0,0.00045484,30]
[407796148,1772805067618,-178.56416906,0.00045484,30]
[407796149,1772805067628,-159.49661076,0.00045484,30]
[407796150,1772805067637,-237.39121081,0.00045484,30]
[407796151,1772805067646,-496.10721813,0.00045484,30]
[407796152,1772805067655,-259.39398879,0.00045484,30]
[407796153,1772805067665,-196.401106,0.00045484,30]
[407796154,1772805067674,-150.0,0.00045493,30]
[407796155,1772805067684,-150.0,0.00045497,30]
[407796156,1772805067694,-299.0,0.000455,120]
[407796157,1772805067704,-178.56416906,0.00045506,30]
[407796158,1772805067713,-159.49661076,0.00045506,30]
[407796159,1772805067722,-237.39121081,0.00045506,30]
[407796160,1772805067732,-496.10721813,0.00045506,30]
[407796161,1772805067743,-259.39398879,0.00045506,30]
[407796162,1772805067752,-196.401106,0.00045506,30]
[407796163,1772805067761,-150.0,0.00045508,30]
[407796164,1772805067770,-150.0,0.00045508,30]
[407796165,1772805067779,-150.0,0.00045516,30]
[407796166,1772805067788,-150.0,0.00045522,30]
[407796167,1772805067798,-150.0,0.00045522,30]
[407796168,1772805067809,-150.0,0.00045522,30]
[407796169,1772805067820,-150.0,0.00045522,30]
[407796170,1772805067831,-178.56416906,0.00045528,30]
[407796171,1772805067840,-159.49661076,0.00045528,30]
[407796172,1772805067849,-237.39121081,0.00045528,30]